fUSD/lending_fUSD_20240919
["ID","MTS","AMOUNT","RATE_DAILY","PERIOD"]
[338535756,1726722640055,-972.06,0.00012898,2]
[338535758,1726722640065,-566.8,0.00012898,2]
[338535759,1726722640074,-500.0,0.00012898,2]
[338535761,1726722640083,-500.0,0.00012898,2]
[338535763,1726722640093,-577.09,0.00012898,2]
[338535765,1726722640102,-1551.85,0.00012898,2]
[338535767,1726722640111,-624.45,0.00012898,2]
[338535768,1726722640121,-500.0,0.00012898,2]
[338535770,1726722640130,-500.0,0.00012898,2]
[338535772,1726722640140,-775.17,0.00012898,2]
[338535774,1726722640149,-500.00644458,0.00012898,2]
[338535776,1726722640160,-500.0,0.00012898,2]
[338535778,1726722640170,-500.0,0.00012898,2]
[338535779,1726722640179,-572.36,0.00012898,2]
[338535781,1726722640188,-500.0,0.00012898,2]
[338535783,1726722640198,-527.7,0.00012898,2]
[338535785,1726722640207,-500.0,0.00012898,2]
[338535787,1726722640216,-500.0,0.00012898,2]
[338535788,1726722640225,-1620.04,0.00012898,2]
[338535790,1726722640235,-500.0,0.00012898,2]
[338535792,1726722640244,-500.0,0.00012898,2]
[338535794,1726722640254,-1651.43,0.00012898,2]
[338535796,1726722640263,-500.0,0.00012898,2]
[338535798,1726722640272,-500.0,0.00012898,2]
[338535799,1726722640282,-500.0,0.00012898,2]
[338535801,1726722640291,-500.0,0.00012898,2]
[338535803,1726722640300,-500.0,0.00012898,2]
[338535805,1726722640310,-500.0,0.00012898,2]
[338535807,1726722640319,-500.0,0.00012898,2]
[338535809,1726722640328,-500.0,0.00012898,2]
[338535810,1726722640337,-500.0,0.00012898,2]
[338535812,1726722640347,-500.0,0.00012898,2]
[338535814,1726722640360,-3649.81,0.00012898,2]
[338535816,1726722640369,-500.0,0.00012898,2]
[338535818,1726722640378,-202.14434191,0.00012898,2]
[338535820,1726722640388,-824.17,0.00012898,2]
[338535822,1726722640398,-2050.67,0.00012898,2]
[338535823,1726722640408,-500.0,0.00012898,2]
[338535825,1726722640418,-500.0,0.00012898,2]
[338535827,1726722640427,-500.0,0.00012898,2]
[338535829,1726722640437,-1043.4,0.00012898,2]
[338535831,1726722640447,-500.0,0.00012898,2]
[338535832,1726722640456,-500.0,0.00012898,2]
[338535834,1726722640465,-634.31,0.00012898,2]
[338535836,1726722640475,-1225.6,0.00012898,2]
[338535838,1726722640484,-500.0,0.00012898,2]
[338535840,1726722640493,-500.0,0.00012898,2]
[338535841,1726722640503,-1429.62,0.00012898,2]
[338535843,1726722640512,-500.0,0.00012899,2]
[338535845,1726722640522,-824.33,0.00012899,2]
[338535846,1726722640531,-500.0,0.00012899,2]
[338535847,1726722640540,-500.0,0.00012899,2]
[338535848,1726722640549,-500.0,0.00012899,2]
[338535849,1726722640559,-500.0,0.00012899,2]
[338535850,1726722640568,-500.0,0.00012899,2]
[338535851,1726722640577,-1186.82,0.00012899,2]
[338535852,1726722640587,-500.0,0.00012899,2]
[338535853,1726722640596,-500.0,0.00012899,2]
[338535854,1726722640605,-1053.18,0.00012899,2]
[338535855,1726722640615,-1938.17,0.00012899,2]
[338535856,1726722640624,-500.0,0.00012899,2]
[338535857,1726722640633,-500.0,0.00012899,2]
[338535858,1726722640642,-1557.43,0.00012899,2]
[338535859,1726722640652,-500.0,0.00012899,2]
[338535860,1726722640661,-1217.54,0.00012899,2]
[338535861,1726722640671,-545.61,0.00012899,2]
[338535862,1726722640680,-1543.63,0.00012899,2]
[338535863,1726722640689,-1066.59,0.00012899,2]
[338535864,1726722640698,-500.0,0.00012899,2]
[338535865,1726722640708,-500.0,0.00012899,2]
[338535866,1726722640717,-500.0,0.00012899,2]
[338535867,1726722640726,-500.0,0.00012899,2]
[338535868,1726722640736,-747.18,0.00012899,2]
[338535869,1726722640745,-2007.6,0.00012899,2]
[338535870,1726722640754,-572.13875733,0.00012899,2]
[338535871,1726722640763,-664.24,0.00012899,2]
[338535872,1726722640772,-500.0,0.00012899,2]
[338535873,1726722640782,-500.0,0.00012899,2]
[338535874,1726722640791,-500.0,0.00012899,2]
[338535875,1726722640801,-743.0,0.00012899,2]
[338535876,1726722640811,-500.0,0.00012899,2]
[338535877,1726722640820,-500.0,0.00012899,2]
[338535878,1726722640829,-845.42,0.00012899,2]
[338535879,1726722640839,-1700.37,0.00012899,2]
[338535880,1726722640848,-595.06,0.00012899,2]
[338535881,1726722640858,-500.0,0.00012899,2]
[338535882,1726722640868,-500.0,0.00012899,2]
[338535883,1726722640877,-690.26,0.00012899,2]
[338535884,1726722640887,-947.22,0.00012899,2]
[338535885,1726722640896,-500.0,0.00012899,2]
[338535886,1726722640906,-740.29,0.00012899,2]
[338535887,1726722640916,-1268.9,0.00012899,2]
[338535888,1726722640924,-500.0,0.00012899,2]
[338535889,1726722640934,-500.0,0.00012899,2]
[338535890,1726722640944,-500.0,0.00012899,2]
[338535891,1726722640953,-686.16,0.00012899,2]
[338535892,1726722640962,-500.0,0.00012899,2]
[338535893,1726722640971,-1433.56,0.00012899,2]
[338535894,1726722640980,-500.0,0.00012899,2]
[338535895,1726722640989,-572.28,0.00012899,2]
[338535896,1726722640999,-1696.3,0.00012899,2]
[338535897,1726722641007,-1140.2,0.00012899,2]
[338535898,1726722641017,-813.98,0.00012899,2]
[338535899,1726722641026,-500.0,0.00012899,2]
[338535900,1726722641035,-500.0,0.00012899,2]
[338535901,1726722641044,-500.0,0.00012899,2]
[338535902,1726722641054,-500.0,0.00012899,2]
[338535903,1726722641063,-500.0,0.00012899,2]
[338535904,1726722641073,-813.52,0.00012899,2]
[338535905,1726722641082,-806.41,0.00012899,2]
[338535906,1726722641092,-500.0,0.00012899,2]
[338535907,1726722641101,-1521.33,0.00012899,2]
[338535908,1726722641111,-500.0,0.00012899,2]
[338535909,1726722641120,-500.0,0.00012899,2]
[338535910,1726722641130,-500.0,0.00012899,2]
[338535911,1726722641139,-500.0,0.00012899,2]
[338535912,1726722641148,-500.0,0.00012899,2]
[338535913,1726722641159,-500.0,0.00012899,2]
[338535914,1726722641168,-500.0,0.00012899,2]
[338535915,1726722641178,-615.23,0.00012899,2]
[338535916,1726722641187,-500.0,0.00012899,2]
[338535917,1726722641197,-500.0,0.00012899,2]
[338535918,1726722641206,-500.27951922,0.00012899,2]
[338535919,1726722641215,-693.0,0.00012899,2]
[338535920,1726722641224,-500.0,0.00012899,2]
[338535921,1726722641234,-500.0,0.00012899,2]
[338535922,1726722641243,-500.0,0.00012899,2]
[338535923,1726722641252,-610.3,0.00012899,2]
[338535924,1726722641261,-1206.05,0.00012899,2]
[338535925,1726722641271,-552.45,0.00012899,2]
[338535926,1726722641280,-762.28,0.00012899,2]
[338535927,1726722641290,-1257.9,0.00012899,2]
[338535928,1726722641299,-638.24,0.00012899,2]
[338535929,1726722641309,-500.0,0.00012899,2]
[338535930,1726722641318,-500.0,0.00012899,2]
[338535931,1726722641328,-500.0,0.00012899,2]
[338535932,1726722641337,-500.0,0.00012899,2]
[338535933,1726722641347,-500.0,0.00012899,2]
[338535934,1726722641360,-500.0,0.00012899,2]
[338535935,1726722641369,-500.0,0.00012899,2]
[338535936,1726722641378,-537.16,0.00012899,2]
[338535937,1726722641388,-500.0,0.00012899,2]
[338535938,1726722641398,-500.0,0.00012899,2]
[338535939,1726722641409,-500.0,0.00012899,2]
[338535940,1726722641418,-561.07,0.00012899,2]
[338535941,1726722641429,-500.0,0.00012899,2]
[338535942,1726722641438,-500.0,0.00012899,2]
[338535943,1726722641448,-500.0,0.00012899,2]
[338535944,1726722641458,-725.31,0.00012899,2]
[338535945,1726722641546,-500.0,0.00012899,2]
[338535946,1726722641557,-512.28,0.00012899,2]
[338535947,1726722641567,-500.0,0.00012899,2]
[338535948,1726722641577,-500.0,0.00012899,2]
[338535949,1726722641586,-500.0,0.00012899,2]
[338535950,1726722641595,-500.0,0.00012899,2]
[338535951,1726722641604,-500.0,0.00012899,2]
[338535952,1726722641613,-500.0,0.00012899,2]
[338535953,1726722641622,-500.0,0.00012899,2]
[338535954,1726722641631,-500.0,0.00012899,2]
[338535955,1726722641641,-500.0,0.00012899,2]
[338535956,1726722641650,-500.0,0.00012899,2]
[338535957,1726722641660,-500.0,0.00012899,2]
[338535958,1726722641670,-500.0,0.00012899,2]
[338535959,1726722641678,-500.0,0.00012899,2]
[338535960,1726722641687,-1819.43,0.00012899,2]
[338535961,1726722641697,-870.21,0.00012899,2]
[338535962,1726722641708,-733.09,0.00012899,2]
[338535963,1726722641717,-500.0,0.00012899,2]
[338535964,1726722641726,-803.17,0.00012899,2]
[338535965,1726722641735,-500.0,0.00012899,2]
[338535966,1726722641744,-1380.34,0.00012899,2]
[338535967,1726722641753,-500.0,0.00012899,2]
[338535968,1726722641762,-500.0,0.00012899,2]
[338535969,1726722641771,-500.0,0.00012899,2]
[338535970,1726722641780,-1174.64,0.00012899,2]
[338535971,1726722641790,-788.95,0.00012899,2]
[338535972,1726722641799,-500.0,0.00012899,2]
[338535973,1726722641808,-500.0,0.00012899,2]
[338535974,1726722641817,-1316.76,0.00012899,2]
[338535975,1726722641826,-500.0,0.00012899,2]
[338535976,1726722641835,-500.0,0.00012899,2]
[338535977,1726722641844,-500.0,0.00012899,2]
[338535978,1726722641853,-500.0,0.00012899,2]
[338535979,1726722641862,-500.0,0.00012899,2]
[338535980,1726722641871,-1274.31,0.00012899,2]
[338535981,1726722641881,-1047.35,0.00012899,2]
[338535982,1726722641890,-500.0,0.00012899,2]
[338535983,1726722641899,-500.0,0.00012899,2]
[338535984,1726722641909,-500.0,0.00012899,2]
[338535985,1726722641918,-500.0,0.00012899,2]
[338535986,1726722641927,-500.0,0.00012899,2]
[338535987,1726722641936,-500.0,0.00012899,2]
[338535988,1726722641944,-500.0,0.00012899,2]
[338535989,1726722641953,-1307.88,0.00012899,2]
[338535990,1726722641962,-500.0,0.00012899,2]
[338535991,1726722641972,-500.0,0.00012899,2]
[338535992,1726722641981,-500.59,0.00012899,2]
[338535993,1726722641990,-500.0,0.00012899,2]
[338535994,1726722641999,-1147.76,0.00012899,2]
[338535995,1726722642008,-616.6,0.00012899,2]
[338535996,1726722642017,-1352.08,0.00012899,2]
[338535997,1726722642026,-500.0,0.00012899,2]
[338535998,1726722642035,-413.73057557,0.00012899,2]
[338535999,1726722642044,-503.91,0.00012899,2]
[338536000,1726722642053,-1056.13,0.00012899,2]
[338536001,1726722642061,-500.0,0.00012899,2]
[338536002,1726722642070,-500.0,0.00012899,2]
[338536003,1726722642079,-1437.89,0.00012899,2]
[338536004,1726722642088,-547.18,0.00012899,2]
[338536005,1726722642098,-500.0,0.00012899,2]
[338536006,1726722642107,-782.03,0.00012899,2]
[338536007,1726722642116,-500.0,0.00012899,2]
[338536008,1726722642126,-500.0,0.00012899,2]
[338536009,1726722642135,-500.0,0.00012899,2]
[338536010,1726722642144,-500.0,0.00012899,2]
[338536011,1726722642153,-500.0,0.00012899,2]
[338536012,1726722642162,-500.0,0.00012899,2]
[338536013,1726722642171,-500.0,0.00012899,2]
[338536014,1726722642180,-635.98,0.00012899,2]
[338536015,1726722642189,-500.0,0.00012899,2]
[338536016,1726722642198,-565.29,0.00012899,2]
[338536017,1726722642207,-500.0,0.00012899,2]
[338536018,1726722642217,-500.0,0.00012899,2]
[338536019,1726722642226,-1214.53,0.00012899,2]
[338536020,1726722642235,-500.0,0.00012899,2]
[338536021,1726722642244,-500.0,0.00012899,2]
[338536022,1726722642254,-500.0,0.00012899,2]
[338536023,1726722642263,-1022.0,0.00012899,2]
[338536024,1726722642273,-500.0,0.00012899,2]
[338536025,1726722642282,-500.0,0.00012899,2]
[338536026,1726722642291,-500.0,0.00012899,2]
[338536027,1726722642300,-500.0,0.00012899,2]
[338536028,1726722642310,-500.0,0.00012899,2]
[338536029,1726722642319,-500.0,0.00012899,2]
[338536030,1726722642328,-500.0,0.00012899,2]
[338536031,1726722642337,-500.0,0.00012899,2]
[338536032,1726722642346,-676.23,0.00012899,2]
[338536033,1726722642355,-903.87,0.00012899,2]
[338536034,1726722642364,-500.0,0.00012899,2]
[338536035,1726722642374,-500.0,0.00012899,2]
[338536036,1726722642383,-500.0,0.00012899,2]
[338536037,1726722642392,-500.0,0.00012899,2]
[338536038,1726722642402,-500.0,0.00012899,2]
[338536039,1726722642412,-500.0,0.00012899,2]
[338536040,1726722642421,-661.34,0.00012899,2]
[338536041,1726722642430,-739.97,0.00012899,2]
[338536042,1726722642440,-500.0,0.00012899,2]
[338536043,1726722642450,-528.43,0.00012899,2]
[338536044,1726722642459,-500.0,0.00012899,2]
[338536045,1726722642468,-500.0,0.00012899,2]
[338536046,1726722642477,-500.0,0.00012899,2]
[338536047,1726722642487,-500.0,0.00012899,2]
[338536048,1726722642496,-1111.04,0.00012899,2]
[338536049,1726722642506,-1756.97,0.00012899,2]
[338536050,1726722642515,-500.0,0.00012899,2]
[338536051,1726722642525,-500.0,0.00012899,2]
[338536052,1726722642534,-875.43,0.00012899,2]
[338536053,1726722642543,-500.0,0.00012899,2]
[338536054,1726722642552,-1128.56,0.00012899,2]
[338536055,1726722642561,-500.0,0.00012899,2]
[338536056,1726722642570,-500.0,0.00012899,2]
[338536057,1726722642580,-500.0,0.00012899,2]
[338536058,1726722642589,-500.0,0.00012899,2]
[338536059,1726722642598,-913.26,0.00012899,2]
[338536060,1726722642607,-500.0,0.00012899,2]
[338536061,1726722642617,-500.0,0.00012899,2]
[338536062,1726722642626,-500.0,0.00012899,2]
[338536063,1726722642635,-500.0,0.00012899,2]
[338536064,1726722642645,-500.0,0.00012899,2]
[338536065,1726722642655,-500.0,0.00012899,2]
[338536066,1726722642665,-741.24,0.00012899,2]
[338536067,1726722642674,-500.0,0.00012899,2]
[338536068,1726722642683,-500.0,0.00012899,2]
[338536069,1726722642692,-500.0,0.00012899,2]
[338536070,1726722642700,-765.78,0.00012899,2]
[338536071,1726722642710,-500.0,0.00012899,2]
[338536072,1726722642718,-500.0,0.00012899,2]
[338536073,1726722642727,-1029.29,0.00012899,2]
[338536074,1726722642736,-500.0,0.00012899,2]
[338536075,1726722642745,-500.0,0.00012899,2]
[338536076,1726722642754,-664.46,0.00012899,2]
[338536077,1726722642762,-500.0,0.00012899,2]
[338536078,1726722642771,-1208.44,0.00012899,2]
[338536079,1726722642780,-1328.53,0.00012899,2]
[338536080,1726722642789,-1222.18,0.00012899,2]
[338536081,1726722642797,-1200.0,0.000129,4]
[338536082,1726722642806,-600.0,0.00012908,2]
[338536083,1726722642815,-186.13,0.00012923,2]
[338536084,1726722642824,-440.497,0.00012993,2]
[338536085,1726722642832,-573.92,0.00012994,2]
[338536086,1726722642841,-1109.2,0.00012994,2]
[338536087,1726722642850,-1317.5,0.00012994,2]
[338536088,1726722642859,-500.0,0.00012994,2]
[338536089,1726722642868,-500.0,0.00012994,2]
[338536090,1726722642877,-608.84,0.00012994,2]
[338536091,1726722642887,-2449.96,0.00012994,2]
[338536092,1726722642896,-2567.63,0.00012994,2]
[338536093,1726722642906,-1018.47,0.00012994,2]
[338536094,1726722642925,-753.77,0.00012994,2]
[338536095,1726722642934,-921.35,0.00012994,2]
[338536096,1726722642943,-500.0,0.00012994,2]
[338536097,1726722642952,-20000.0,0.00012994,2]
[338536098,1726722642961,-2576.61,0.00012994,2]
[338536099,1726722642970,-1208.08,0.00012994,2]
[338536100,1726722642979,-500.0,0.00012994,2]
[338536101,1726722642988,-1830.02,0.00012994,2]
[338536102,1726722642997,-553.04,0.00012994,2]
[338536103,1726722643007,-4188.69,0.00012994,2]
[338536104,1726722643015,-882.92,0.00012994,2]
[338536105,1726722643024,-1620.54,0.00012994,2]
[338536106,1726722643033,-576.0,0.00012994,2]
[338536107,1726722643042,-625.97,0.00012994,2]
[338536108,1726722643051,-2144.38,0.00012994,2]
[338536109,1726722643060,-711.15,0.00012994,2]
[338536110,1726722643069,-1125.84,0.00012994,2]
[338536111,1726722643078,-500.0,0.00012994,2]
[338536112,1726722643087,-600.8853219,0.00012994,2]
[338536113,1726722643096,-1857.04,0.00012994,2]
[338536114,1726722643105,-643.94,0.00012994,2]
[338536115,1726722643114,-500.0,0.00012994,2]
[338536116,1726722643123,-591.02,0.00012994,2]
[338536117,1726722643132,-856.74,0.00012994,2]
[338536118,1726722643141,-1826.35,0.00012994,2]
[338536119,1726722643150,-500.0,0.00012994,2]
[338536120,1726722643162,-500.0,0.00012994,2]
[338536121,1726722643171,-500.0,0.00012994,2]
[338536122,1726722643180,-741.25,0.00012994,2]
[338536123,1726722643190,-552.04,0.00012994,2]
[338536124,1726722643199,-539.96,0.00012994,2]
[338536125,1726722643208,-500.0,0.00012994,2]
[338536126,1726722643217,-500.0,0.00012994,2]
[338536127,1726722643226,-500.0,0.00012994,2]
[338536128,1726722643235,-500.0,0.00012994,2]
[338536129,1726722643244,-500.0,0.00012994,2]
[338536130,1726722643253,-500.0,0.00012994,2]
[338536131,1726722643262,-500.0,0.00012994,2]
[338536132,1726722643272,-500.0,0.00012994,2]
[338536133,1726722643281,-1319.97,0.00012994,2]
[338536134,1726722643291,-500.0,0.00012994,2]
[338536135,1726722643300,-500.0,0.00012994,2]
[338536136,1726722643309,-500.0,0.00012994,2]
[338536137,1726722643319,-500.0,0.00012994,2]
[338536138,1726722643329,-500.0,0.00012994,2]
[338536139,1726722643338,-500.0,0.00012994,2]
[338536140,1726722643349,-760.58,0.00012994,2]
[338536141,1726722643359,-1602.98,0.00012994,2]
[338536142,1726722643368,-2068.68,0.00012994,2]
[338536143,1726722643377,-531.06,0.00012994,2]
[338536144,1726722643387,-952.48,0.00012994,2]
[338536145,1726722643396,-1313.54,0.00012994,2]
[338536146,1726722643408,-1114.44,0.00012994,2]
[338536147,1726722643418,-607.04,0.00012994,2]
[338536148,1726722643429,-500.0,0.00012994,2]
[338536149,1726722643439,-500.0,0.00012994,2]
[338536150,1726722643448,-1201.0,0.00012994,2]
[338536151,1726722643457,-500.0,0.00012994,2]
[338536152,1726722643467,-500.0,0.00012994,2]
[338536153,1726722643476,-2360.63,0.00012994,2]
[338536154,1726722643485,-3239.54,0.00012994,2]
[338536155,1726722643495,-1663.07,0.00012994,2]
[338536156,1726722643504,-500.0,0.00012994,2]
[338536157,1726722643513,-500.0,0.00012994,2]
[338536158,1726722643522,-500.10457124,0.00012994,2]
[338536159,1726722643531,-500.0,0.00012994,2]
[338536160,1726722643540,-728.05,0.00012994,2]
[338536161,1726722643550,-500.0,0.00012994,2]
[338536162,1726722643559,-3378.44,0.00012994,2]
[338536163,1726722643568,-602.84,0.00012994,2]
[338536164,1726722643577,-500.0,0.00012994,2]
[338536165,1726722643586,-1557.79,0.00012994,2]
[338536166,1726722643596,-500.0,0.00012994,2]
[338536167,1726722643605,-1631.59,0.00012994,2]
[338536168,1726722643614,-500.0,0.00012994,2]
[338536169,1726722643623,-500.0,0.00012994,2]
[338536170,1726722643633,-926.98,0.00012994,2]
[338536171,1726722643642,-720.75,0.00012994,2]
[338536172,1726722643651,-577.13,0.00012994,2]
[338536173,1726722643661,-500.0,0.00012994,2]
[338536174,1726722643670,-500.0,0.00012994,2]
[338536175,1726722643679,-500.0,0.00012994,2]
[338536176,1726722643688,-1164.93,0.00012994,2]
[338536177,1726722643697,-500.0,0.00012994,2]
[338536178,1726722643707,-500.0,0.00012994,2]
[338536179,1726722643716,-500.0,0.00012994,2]
[338536180,1726722643725,-500.0,0.00012994,2]
[338536181,1726722643734,-500.0,0.00012994,2]
[338536182,1726722643744,-500.0,0.00012994,2]
[338536183,1726722643753,-238.52331477,0.00012994,2]
[338536184,1726722643762,-500.0,0.00012994,2]
[338536185,1726722643771,-500.0,0.00012994,2]
[338536186,1726722643781,-500.0,0.00012994,2]
[338536187,1726722643790,-547.06,0.00012994,2]
[338536188,1726722643799,-1718.32,0.00012994,2]
[338536189,1726722643808,-1476.11,0.00012994,2]
[338536190,1726722643817,-593.38,0.00012994,2]
[338536191,1726722643826,-500.0,0.00012994,2]
[338536192,1726722643835,-1965.96,0.00012994,2]
[338536193,1726722643844,-2863.67,0.00012994,2]
[338536194,1726722643854,-659.54,0.00012994,2]
[338536195,1726722643863,-898.39,0.00012994,2]
[338536196,1726722643872,-3545.68,0.00012994,2]
[338536197,1726722643881,-500.0,0.00012994,2]
[338536198,1726722643890,-500.0,0.00012994,2]
[338536199,1726722643899,-500.0,0.00012994,2]
[338536200,1726722643910,-500.0,0.00012994,2]
[338536201,1726722643920,-3265.71,0.00012994,2]
[338536202,1726722643929,-1041.31,0.00012994,2]
[338536203,1726722643938,-630.270407,0.00012994,2]
[338536204,1726722643946,-500.0,0.00012994,2]
[338536205,1726722643955,-500.0,0.00012994,2]
[338536206,1726722643964,-500.0,0.00012994,2]
[338536207,1726722643973,-500.0,0.00012994,2]
[338536208,1726722643982,-630.93426239,0.00012994,2]
[338536209,1726722643991,-500.0,0.00012994,2]
[338536210,1726722644000,-500.0,0.00012994,2]
[338536211,1726722644010,-3612.63,0.00012994,2]
[338536212,1726722644019,-542.72,0.00012994,2]
[338536213,1726722644028,-622.41,0.00012994,2]
[338536214,1726722644037,-500.0,0.00012994,2]
[338536215,1726722644046,-2016.38,0.00012994,2]
[338536216,1726722644055,-500.0,0.00012994,2]
[338536217,1726722644064,-500.0,0.00012994,2]
[338536218,1726722644073,-500.0,0.00012994,2]
[338536219,1726722644083,-500.0,0.00012994,2]
[338536220,1726722644091,-3391.75,0.00012994,2]
[338536221,1726722644100,-2798.75,0.00012994,2]
[338536222,1726722644110,-500.0,0.00012994,2]
[338536223,1726722644119,-500.0,0.00012994,2]
[338536224,1726722644130,-500.0,0.00012994,2]
[338536225,1726722644139,-2096.6,0.00012994,2]
[338536226,1726722644149,-500.0,0.00012994,2]
[338536227,1726722644158,-500.0,0.00012994,2]
[338536228,1726722644167,-496.5,0.00012994,2]
[338536229,1726722644176,-500.0,0.00012994,2]
[338536230,1726722644185,-2145.5,0.00012994,2]
[338536231,1726722644195,-751.96,0.00012994,2]
[338536232,1726722644204,-500.0,0.00012994,2]
[338536233,1726722644213,-500.0,0.00012994,2]
[338536234,1726722644222,-2148.15,0.00012994,2]
[338536235,1726722644231,-570.5,0.00012994,2]
[338536236,1726722644240,-688.45,0.00012994,2]
[338536237,1726722644250,-1000.0,0.00012994,2]
[338536238,1726722644259,-1679.12,0.00012994,2]
[338536239,1726722644268,-2128.1,0.00012994,2]
[338536240,1726722644277,-306.6,0.00012997,2]
[338536241,1726722644287,-4854.2,0.00012997,2]
[338536242,1726722644296,-500.0,0.00012997,2]
[338536243,1726722644305,-5631.07,0.00012997,2]
[338536244,1726722644314,-1879.15,0.00012997,2]
[338536245,1726722644323,-1801.6,0.00012997,2]
[338536246,1726722644333,-500.0,0.00012997,2]
[338536247,1726722644342,-500.0,0.00012997,2]
[338536248,1726722644353,-500.0,0.00012997,2]
[338536249,1726722644363,-6578.42,0.00012997,2]
[338536250,1726722644372,-500.0,0.00012997,2]
[338536251,1726722644381,-2446.99,0.00012997,2]
[338536252,1726722644391,-3609.87,0.00012997,2]
[338536253,1726722644400,-2565.47,0.00012997,2]
[338536254,1726722644411,-3879.18,0.00012997,2]
[338536255,1726722644421,-3957.78,0.00012997,2]
[338536256,1726722644430,-1576.43,0.00012997,2]
[338536257,1726722644440,-1726.42,0.00012997,2]
[338536258,1726722644449,-500.0,0.00012997,2]
[338536259,1726722644459,-500.0,0.00012997,2]
[338536260,1726722644468,-500.0,0.00012998,2]
[338536261,1726722644477,-500.0,0.00012998,2]
[338536262,1726722644487,-500.00085494,0.00012998,2]
[338536263,1726722644498,-500.0,0.00012998,2]
[338536264,1726722644507,-500.0,0.00012998,2]
[338536265,1726722644516,-500.00085494,0.00012998,2]
[338536266,1726722644525,-500.0,0.00012998,2]
[338536267,1726722644534,-500.0,0.00012998,2]
[338536268,1726722644543,-500.0,0.00012998,2]
[338536269,1726722644551,-199.64778307,0.00012998,2]
[338536270,1726722644560,-535.41929722,0.00012998,2]
[338536271,1726722644569,-500.0,0.00012998,2]
[338536272,1726722644579,-498.0,0.00012998,2]
[338536273,1726722644588,-500.0,0.00012998,2]
[338536274,1726722644598,-341.03120705,0.00012998,2]
[338536275,1726722644607,-500.0,0.00012998,2]
[338536276,1726722644616,-500.0,0.00012998,2]
[338536277,1726722644625,-164.40872822,0.00012998,2]
[338536278,1726722644634,-500.0,0.00012998,2]
[338536279,1726722644643,-500.0,0.00012998,2]
[338536280,1726722644652,-500.0,0.00012998,2]
[338536281,1726722644661,-411.14607686,0.00012998,2]
[338536282,1726722644670,-500.0,0.00012998,2]
[338536283,1726722644678,-500.0,0.00012998,2]
[338536284,1726722644687,-500.0,0.00012998,2]
[338536285,1726722644697,-463.02581769,0.00012998,2]
[338536286,1726722644706,-277.56434372,0.00012998,2]
[338536287,1726722644715,-500.0,0.00012998,2]
[338536288,1726722644724,-500.0,0.00012998,2]
[338536289,1726722644733,-500.0,0.00012998,2]
[338536290,1726722644742,-527.98808275,0.00012998,2]
[338536291,1726722644751,-500.0,0.00012998,2]
[338536292,1726722644760,-194.90484398,0.00012998,2]
[338536293,1726722644769,-500.0,0.00012998,2]
[338536294,1726722644778,-500.0,0.00012998,2]
[338536295,1726722644787,-500.0,0.00012998,2]